[Event "Titled Tuesday Blitz December 27 Late 2022"]
[White "Can, Melih Kaan"]
[Black "Bjelobrk, Igor"]
[WhiteFideId "6317383"]
[BlackFideId "4300726"]
[WhiteElo "2069"]
[BlackElo "2403"]
[Result "0-1"]
[Round "10"]
[TimeControl "180+2"]
[Date "2022.12.27"]
[WhiteClock "0:00:03"]
[BlackClock "0:00:03"]

1. d4 {[%clk 0:02:55]}  d5 {[%clk 0:02:58]} 2. c4 {[%clk 0:02:55]}  c6 {[%clk 0:02:58]} 3. Nf3 {[%clk 0:02:54]}  Nf6 {[%clk 0:02:58]} 4. Nc3 {[%clk 0:02:53]}  a6 {[%clk 0:02:56]} 5. c5 {[%clk 0:02:51]}  Nbd7 {[%clk 0:02:51]} 6. Bf4 {[%clk 0:02:52]}  Nh5 {[%clk 0:02:50]} 7. Bg5 {[%clk 0:02:44]}  h6 {[%clk 0:02:49]} 8. Bd2 {[%clk 0:02:44]}  Nhf6 {[%clk 0:02:46]} 9. g3 {[%clk 0:02:41]}  g6 {[%clk 0:02:37]} 10. Bg2 {[%clk 0:02:40]}  Bg7 {[%clk 0:02:36]} 11. O-O {[%clk 0:02:41]}  O-O {[%clk 0:02:36]} 12. Qc2 {[%clk 0:02:22]}  b6 {[%clk 0:02:31]} 13. b4 {[%clk 0:02:21]}  bxc5 {[%clk 0:02:15]} 14. bxc5 {[%clk 0:02:16]}  Re8 {[%clk 0:01:54]} 15. e4 {[%clk 0:02:08]}  dxe4 {[%clk 0:01:32]} 16. Nxe4 {[%clk 0:02:09]}  Nd5 {[%clk 0:01:22]} 17. Rfe1 {[%clk 0:02:02]}  Qc7 {[%clk 0:01:16]} 18. Qa4 {[%clk 0:02:01]}  a5 {[%clk 0:01:15]} 19. Rab1 {[%clk 0:02:01]}  Ra6 {[%clk 0:00:59]} 20. Nd6 {[%clk 0:02:00]}  Rd8 {[%clk 0:00:51]} 21. Nc4 {[%clk 0:01:55]}  Nf8 {[%clk 0:00:40]} 22. Bxa5 {[%clk 0:01:38]}  Qa7 {[%clk 0:00:39]} 23. Nfe5 {[%clk 0:01:12]}  Qa8 {[%clk 0:00:31]} 24. Qc2 {[%clk 0:00:46]}  Rxa5 {[%clk 0:00:20]} 25. Nxa5 {[%clk 0:00:44]}  Bxe5 {[%clk 0:00:20]} 26. Nxc6 {[%clk 0:00:41]}  Qxc6 {[%clk 0:00:20]} 27. Rxe5 {[%clk 0:00:41]}  e6 {[%clk 0:00:21]} 28. Rb6 {[%clk 0:00:33]}  Qc7 {[%clk 0:00:20]} 29. Rb1 {[%clk 0:00:24]}  Nh7 {[%clk 0:00:19]} 30. a4 {[%clk 0:00:24]}  Nhf6 {[%clk 0:00:19]} 31. Ra1 {[%clk 0:00:24]}  Ba6 {[%clk 0:00:19]} 32. a5 {[%clk 0:00:24]}  Rb8 {[%clk 0:00:19]} 33. Ree1 {[%clk 0:00:21]}  Ra8 {[%clk 0:00:19]} 34. Reb1 {[%clk 0:00:21]}  Bb7 {[%clk 0:00:18]} 35. Qc4 {[%clk 0:00:20]}  Bc6 {[%clk 0:00:18]} 36. a6 {[%clk 0:00:19]}  Kg7 {[%clk 0:00:17]} 37. h4 {[%clk 0:00:19]}  h5 {[%clk 0:00:18]} 38. Ra3 {[%clk 0:00:17]}  Ra7 {[%clk 0:00:17]} 39. Rba1 {[%clk 0:00:17]}  Ne7 {[%clk 0:00:15]} 40. Bxc6 {[%clk 0:00:15]}  Nxc6 {[%clk 0:00:16]} 41. Ra4 {[%clk 0:00:13]}  Nd5 {[%clk 0:00:16]} 42. Qc1 {[%clk 0:00:12]}  Qe7 {[%clk 0:00:15]} 43. Qb1 {[%clk 0:00:12]}  Qf6 {[%clk 0:00:13]} 44. Qb2 {[%clk 0:00:11]}  Qf5 {[%clk 0:00:12]} 45. R1a3 {[%clk 0:00:11]}  Qg4 {[%clk 0:00:12]} 46. Kh2 {[%clk 0:00:08]}  Qf5 {[%clk 0:00:11]} 47. Rb3 {[%clk 0:00:08]}  Qf6 {[%clk 0:00:10]} 48. Rb7 {[%clk 0:00:08]}  Ra8 {[%clk 0:00:07]} 49. a7 {[%clk 0:00:08]}  Qd8 {[%clk 0:00:06]} 50. Qb5 {[%clk 0:00:07]}  Nde7 {[%clk 0:00:05]} 51. Ra6 {[%clk 0:00:06]}  Nxd4 {[%clk 0:00:04]} 52. Qb6 {[%clk 0:00:06]}  Qd5 {[%clk 0:00:03]} 53. Rxe7 {[%clk 0:00:04]}  Nf3+ {[%clk 0:00:04]} 54. Kg2 {[%clk 0:00:03]}  Nxh4+ {[%clk 0:00:04]} 55. Kf1 {[%clk 0:00:03]}  Qd1# {[%clk 0:00:03]} 0-1


[Site "https://www.chess.com"]

[Event "Titled Tuesday Blitz December 27 Late 2022"]
[White "Deac, Bogdan-Daniel"]
[Black "Kravtsiv, Martyn"]
[WhiteFideId "1226380"]
[BlackFideId "14113147"]
[WhiteElo "2700"]
[BlackElo "2598"]
[Result "1-0"]
[Round "10"]
[TimeControl "180+2"]
[Date "2022.12.27"]
[WhiteClock "0:00:46"]
[BlackClock "0:00:12"]

1. e4 {[%clk 0:03:00]}  e5 {[%clk 0:02:59]} 2. Nf3 {[%clk 0:03:01]}  Nc6 {[%clk 0:02:59]} 3. Bb5 {[%clk 0:03:01]}  a6 {[%clk 0:02:59]} 4. Ba4 {[%clk 0:03:02]}  Nf6 {[%clk 0:02:59]} 5. O-O {[%clk 0:03:03]}  Be7 {[%clk 0:02:59]} 6. d3 {[%clk 0:03:03]}  b5 {[%clk 0:02:58]} 7. Bb3 {[%clk 0:03:03]}  O-O {[%clk 0:02:58]} 8. Re1 {[%clk 0:03:02]}  d6 {[%clk 0:02:58]} 9. c3 {[%clk 0:03:01]}  Nb8 {[%clk 0:02:55]} 10. Nbd2 {[%clk 0:02:59]}  Nbd7 {[%clk 0:02:54]} 11. Nf1 {[%clk 0:02:52]}  Re8 {[%clk 0:02:53]} 12. Ng5 {[%clk 0:02:49]}  Rf8 {[%clk 0:02:52]} 13. Ng3 {[%clk 0:02:44]}  Nc5 {[%clk 0:02:51]} 14. Bc2 {[%clk 0:02:43]}  Bg4 {[%clk 0:02:44]} 15. Nf3 {[%clk 0:02:40]}  Nh5 {[%clk 0:02:37]} 16. h3 {[%clk 0:02:36]}  Bxf3 {[%clk 0:02:37]} 17. Qxf3 {[%clk 0:02:36]}  Nxg3 {[%clk 0:02:37]} 18. Qxg3 {[%clk 0:02:37]}  Ne6 {[%clk 0:02:37]} 19. Bb3 {[%clk 0:02:36]}  Kh8 {[%clk 0:02:33]} 20. Bd5 {[%clk 0:02:28]}  Rc8 {[%clk 0:02:31]} 21. Be3 {[%clk 0:02:15]}  c6 {[%clk 0:02:29]} 22. Bb3 {[%clk 0:02:15]}  Bh4 {[%clk 0:02:18]} 23. Qg4 {[%clk 0:02:15]}  Qe7 {[%clk 0:02:17]} 24. a4 {[%clk 0:02:08]}  Nc5 {[%clk 0:02:05]} 25. Bc2 {[%clk 0:02:07]}  bxa4 {[%clk 0:01:58]} 26. d4 {[%clk 0:01:53]}  exd4 {[%clk 0:01:26]} 27. cxd4 {[%clk 0:01:52]}  Ne6 {[%clk 0:01:19]} 28. e5 {[%clk 0:01:51]}  dxe5 {[%clk 0:01:05]} 29. dxe5 {[%clk 0:01:51]}  Rb8 {[%clk 0:01:04]} 30. Rxa4 {[%clk 0:01:24]}  Rxb2 {[%clk 0:01:01]} 31. Bxh7 {[%clk 0:01:16]}  g5 {[%clk 0:00:13]} 32. Qh5 {[%clk 0:00:46]}  Kg7 {[%clk 0:00:12]} 33. Rxh4 {[%clk 0:00:46]} 1-0


[Site "https://www.chess.com"]

[Event "Titled Tuesday Blitz December 27 Late 2022"]
[White "Denishev, Marat"]
[Black "Gasanov, Eldar"]
[WhiteFideId "24131563"]
[BlackFideId "14104466"]
[WhiteElo "2255"]
[BlackElo "2481"]
[Result "0-1"]
[Round "10"]
[TimeControl "180+2"]
[Date "2022.12.27"]
[WhiteClock "0:00:28"]
[BlackClock "0:01:25"]

1. Nf3 {[%clk 0:02:56]}  d5 {[%clk 0:02:59]} 2. d4 {[%clk 0:02:50]}  Bf5 {[%clk 0:02:59]} 3. g3 {[%clk 0:02:45]}  e6 {[%clk 0:02:59]} 4. Bg2 {[%clk 0:02:45]}  Nf6 {[%clk 0:02:59]} 5. O-O {[%clk 0:02:45]}  Be7 {[%clk 0:02:55]} 6. c4 {[%clk 0:02:43]}  c6 {[%clk 0:02:55]} 7. Nh4 {[%clk 0:02:41]}  Be4 {[%clk 0:02:47]} 8. f3 {[%clk 0:02:41]}  Bxb1 {[%clk 0:02:44]} 9. Rxb1 {[%clk 0:02:40]}  Nfd7 {[%clk 0:02:44]} 10. Qb3 {[%clk 0:02:33]}  Qb6 {[%clk 0:02:34]} 11. c5 {[%clk 0:02:28]}  Qxb3 {[%clk 0:02:33]} 12. axb3 {[%clk 0:02:29]}  g5 {[%clk 0:02:33]} 13. e4 {[%clk 0:02:18]}  gxh4 {[%clk 0:02:31]} 14. e5 {[%clk 0:02:18]}  hxg3 {[%clk 0:02:26]} 15. hxg3 {[%clk 0:02:19]}  Rg8 {[%clk 0:02:26]} 16. Kf2 {[%clk 0:02:18]}  h5 {[%clk 0:02:21]} 17. Rh1 {[%clk 0:02:17]}  Rh8 {[%clk 0:02:12]} 18. Be3 {[%clk 0:02:10]}  Nf8 {[%clk 0:02:08]} 19. Rh3 {[%clk 0:02:09]}  Ng6 {[%clk 0:02:07]} 20. Rbh1 {[%clk 0:02:09]}  h4 {[%clk 0:02:07]} 21. Ke2 {[%clk 0:02:06]}  Nd7 {[%clk 0:02:02]} 22. g4 {[%clk 0:02:05]}  f6 {[%clk 0:01:54]} 23. f4 {[%clk 0:01:59]}  f5 {[%clk 0:01:54]} 24. gxf5 {[%clk 0:01:54]}  exf5 {[%clk 0:01:54]} 25. Bf3 {[%clk 0:01:50]}  Ndf8 {[%clk 0:01:53]} 26. Rg1 {[%clk 0:01:34]}  Kf7 {[%clk 0:01:53]} 27. Bg2 {[%clk 0:01:18]}  Ne6 {[%clk 0:01:51]} 28. Rf3 {[%clk 0:01:19]}  h3 {[%clk 0:01:51]} 29. Bf1 {[%clk 0:01:16]}  Rh4 {[%clk 0:01:49]} 30. Kd2 {[%clk 0:01:07]}  h2 {[%clk 0:01:44]} 31. Rh1 {[%clk 0:01:06]}  Ngxf4 {[%clk 0:01:40]} 32. Bf2 {[%clk 0:00:59]}  Rh5 {[%clk 0:01:40]} 33. Be3 {[%clk 0:00:54]}  Bg5 {[%clk 0:01:36]} 34. Kc2 {[%clk 0:00:46]}  Rg8 {[%clk 0:01:32]} 35. b4 {[%clk 0:00:43]}  a6 {[%clk 0:01:32]} 36. Rf2 {[%clk 0:00:39]}  Rgh8 {[%clk 0:01:28]} 37. Rd2 {[%clk 0:00:32]}  Ng6 {[%clk 0:01:25]} 38. Bxg5 {[%clk 0:00:29]}  Nxg5 {[%clk 0:01:25]} 39. Rf2 {[%clk 0:00:28]}  Ne4 {[%clk 0:01:25]} 0-1


[Site "https://www.chess.com"]

[Event "Titled Tuesday Blitz December 27 Late 2022"]
[White "Domingo Nunez, Ruben"]
[Black "Petrovic, Aleksa"]
[WhiteFideId "22245570"]
[BlackFideId "967629"]
[WhiteElo "2416"]
[BlackElo "2332"]
[Result "1-0"]
[Round "10"]
[TimeControl "180+2"]
[Date "2022.12.27"]
[WhiteClock "0:01:23"]
[BlackClock "0:00:04"]

1. e4 {[%clk 0:03:00]}  e6 {[%clk 0:02:58]} 2. Nf3 {[%clk 0:03:01]}  c5 {[%clk 0:02:57]} 3. d4 {[%clk 0:03:01]}  cxd4 {[%clk 0:02:58]} 4. c3 {[%clk 0:03:01]}  Nf6 {[%clk 0:02:56]} 5. e5 {[%clk 0:03:02]}  Nd5 {[%clk 0:02:56]} 6. cxd4 {[%clk 0:03:03]}  d6 {[%clk 0:02:55]} 7. a3 {[%clk 0:03:03]}  Nd7 {[%clk 0:02:52]} 8. Bd3 {[%clk 0:03:04]}  Qc7 {[%clk 0:02:43]} 9. O-O {[%clk 0:03:04]}  dxe5 {[%clk 0:02:35]} 10. dxe5 {[%clk 0:03:05]}  Nc5 {[%clk 0:02:20]} 11. Bc2 {[%clk 0:03:05]}  Bd7 {[%clk 0:02:16]} 12. b4 {[%clk 0:03:03]}  Na6 {[%clk 0:02:10]} 13. Bd3 {[%clk 0:03:03]}  Rc8 {[%clk 0:02:03]} 14. Bd2 {[%clk 0:02:51]}  g6 {[%clk 0:01:44]} 15. h4 {[%clk 0:02:49]}  Bg7 {[%clk 0:01:43]} 16. Qe2 {[%clk 0:02:50]}  Nb8 {[%clk 0:01:28]} 17. b5 {[%clk 0:02:32]}  O-O {[%clk 0:01:18]} 18. a4 {[%clk 0:02:31]}  Rfd8 {[%clk 0:01:12]} 19. Na3 {[%clk 0:02:31]}  Be8 {[%clk 0:01:11]} 20. Rac1 {[%clk 0:02:30]}  Qe7 {[%clk 0:01:07]} 21. Nc4 {[%clk 0:02:30]}  Nd7 {[%clk 0:01:03]} 22. Bg5 {[%clk 0:02:13]}  f6 {[%clk 0:00:46]} 23. exf6 {[%clk 0:02:13]}  Bxf6 {[%clk 0:00:46]} 24. Rfe1 {[%clk 0:02:14]}  Bxg5 {[%clk 0:00:42]} 25. Nxg5 {[%clk 0:02:02]}  Nf4 {[%clk 0:00:39]} 26. Qe3 {[%clk 0:02:02]}  Nxd3 {[%clk 0:00:37]} 27. Qxd3 {[%clk 0:02:03]}  Ne5 {[%clk 0:00:27]} 28. Qe4 {[%clk 0:01:58]}  Nxc4 {[%clk 0:00:27]} 29. Rxc4 {[%clk 0:01:58]}  Rxc4 {[%clk 0:00:28]} 30. Qxc4 {[%clk 0:01:59]}  Bf7 {[%clk 0:00:25]} 31. Qf4 {[%clk 0:01:34]}  Rf8 {[%clk 0:00:10]} 32. Qe5 {[%clk 0:01:29]}  h6 {[%clk 0:00:06]} 33. Ne4 {[%clk 0:01:29]}  Be8 {[%clk 0:00:06]} 34. Rc1 {[%clk 0:01:28]}  Rf5 {[%clk 0:00:06]} 35. Qg3 {[%clk 0:01:28]}  Bf7 {[%clk 0:00:04]} 36. Rc8+ {[%clk 0:01:25]}  Kh7 {[%clk 0:00:03]} 37. Rc7 {[%clk 0:01:22]}  Qf8 {[%clk 0:00:03]} 38. Nd6 {[%clk 0:01:19]}  Rf6 {[%clk 0:00:03]} 39. Qe5 {[%clk 0:01:19]}  Qg7 {[%clk 0:00:03]} 40. Qxf6 {[%clk 0:01:18]}  Qxf6 {[%clk 0:00:03]} 41. Rxf7+ {[%clk 0:01:19]}  Qxf7 {[%clk 0:00:02]} 42. Nxf7 {[%clk 0:01:20]}  Kg7 {[%clk 0:00:03]} 43. Nd8 {[%clk 0:01:20]}  b6 {[%clk 0:00:03]} 44. Nxe6+ {[%clk 0:01:20]}  Kf6 {[%clk 0:00:03]} 45. Nd8 {[%clk 0:01:21]}  Ke5 {[%clk 0:00:03]} 46. Nc6+ {[%clk 0:01:21]}  Kd5 {[%clk 0:00:03]} 47. Nxa7 {[%clk 0:01:22]}  Kc5 {[%clk 0:00:04]} 48. Nc8 {[%clk 0:01:23]} 1-0


[Site "https://www.chess.com"]

[Event "Titled Tuesday Blitz December 27 Late 2022"]
[White "Estrada Nieto, Julian"]
[Black "Schmidt, Harald"]
[WhiteFideId "5101018"]
[BlackFideId "4648358"]
[WhiteElo "2215"]
[BlackElo "2347"]
[Result "1/2-1/2"]
[Round "10"]
[TimeControl "180+2"]
[Date "2022.12.27"]
[WhiteClock "0:00:29"]
[BlackClock "0:00:31"]

1. e4 {[%clk 0:03:00]}  d6 {[%clk 0:02:58]} 2. d4 {[%clk 0:03:00]}  e5 {[%clk 0:02:56]} 3. Nf3 {[%clk 0:02:59]}  exd4 {[%clk 0:02:55]} 4. Nxd4 {[%clk 0:02:58]}  Nc6 {[%clk 0:02:55]} 5. Nc3 {[%clk 0:02:52]}  Nf6 {[%clk 0:02:48]} 6. Bb5 {[%clk 0:02:46]}  Bd7 {[%clk 0:02:47]} 7. O-O {[%clk 0:02:45]}  Be7 {[%clk 0:02:43]} 8. Bxc6 {[%clk 0:02:45]}  bxc6 {[%clk 0:02:41]} 9. Qf3 {[%clk 0:02:46]}  O-O {[%clk 0:02:38]} 10. e5 {[%clk 0:02:36]}  dxe5 {[%clk 0:02:35]} 11. Nxc6 {[%clk 0:02:35]}  Bxc6 {[%clk 0:02:34]} 12. Qxc6 {[%clk 0:02:34]}  Bb4 {[%clk 0:02:15]} 13. Bg5 {[%clk 0:02:32]}  Qd6 {[%clk 0:02:09]} 14. Qxd6 {[%clk 0:02:29]}  cxd6 {[%clk 0:02:00]} 15. Bxf6 {[%clk 0:02:29]}  Bxc3 {[%clk 0:02:00]} 16. Bxg7 {[%clk 0:02:24]}  Kxg7 {[%clk 0:01:59]} 17. bxc3 {[%clk 0:02:24]}  Rac8 {[%clk 0:01:59]} 18. Rfd1 {[%clk 0:02:19]}  Rxc3 {[%clk 0:01:57]} 19. Rxd6 {[%clk 0:02:19]}  Rxc2 {[%clk 0:01:57]} 20. Ra6 {[%clk 0:02:18]}  Rfc8 {[%clk 0:01:56]} 21. g3 {[%clk 0:02:17]}  R8c7 {[%clk 0:01:55]} 22. Re1 {[%clk 0:02:12]}  f6 {[%clk 0:01:54]} 23. Re3 {[%clk 0:02:11]}  R2c6 {[%clk 0:01:50]} 24. Rea3 {[%clk 0:02:08]}  Rxa6 {[%clk 0:01:48]} 25. Rxa6 {[%clk 0:02:08]}  Kg6 {[%clk 0:01:47]} 26. Kg2 {[%clk 0:02:06]}  Kf5 {[%clk 0:01:47]} 27. Kf3 {[%clk 0:02:00]}  h5 {[%clk 0:01:45]} 28. h3 {[%clk 0:01:59]}  Rb7 {[%clk 0:01:44]} 29. g4+ {[%clk 0:01:46]}  hxg4+ {[%clk 0:01:42]} 30. hxg4+ {[%clk 0:01:47]}  Kg5 {[%clk 0:01:42]} 31. Kg3 {[%clk 0:01:45]}  Rc7 {[%clk 0:01:40]} 32. f3 {[%clk 0:01:45]}  Rd7 {[%clk 0:01:40]} 33. a4 {[%clk 0:01:44]}  Rc7 {[%clk 0:01:30]} 34. a5 {[%clk 0:01:43]}  Rd7 {[%clk 0:01:30]} 35. Kf2 {[%clk 0:01:42]}  Rc7 {[%clk 0:01:27]} 36. Ke3 {[%clk 0:01:42]}  Rc3+ {[%clk 0:01:26]} 37. Ke4 {[%clk 0:01:40]}  Rc4+ {[%clk 0:01:25]} 38. Kd3 {[%clk 0:01:37]}  Rc7 {[%clk 0:01:25]} 39. Re6 {[%clk 0:01:30]}  Rf7 {[%clk 0:01:22]} 40. a6 {[%clk 0:01:30]}  Kf4 {[%clk 0:01:21]} 41. Ke2 {[%clk 0:01:21]}  Kg5 {[%clk 0:01:20]} 42. Rc6 {[%clk 0:01:18]}  Rd7 {[%clk 0:01:19]} 43. Ke3 {[%clk 0:01:14]}  Rh7 {[%clk 0:01:17]} 44. Rc8 {[%clk 0:01:12]}  Rd7 {[%clk 0:01:15]} 45. Rg8+ {[%clk 0:01:11]}  Kh6 {[%clk 0:01:15]} 46. Rb8 {[%clk 0:01:10]}  Rd6 {[%clk 0:01:13]} 47. Ke4 {[%clk 0:01:06]}  Rxa6 {[%clk 0:01:13]} 48. Kf5 {[%clk 0:01:06]}  Rb6 {[%clk 0:01:08]} 49. Ra8 {[%clk 0:01:05]}  a6 {[%clk 0:01:07]} 50. Ra7 {[%clk 0:01:05]}  Rc6 {[%clk 0:01:06]} 51. Ra8 {[%clk 0:01:04]}  Rb6 {[%clk 0:01:06]} 52. Ra7 {[%clk 0:01:05]}  Rc6 {[%clk 0:01:01]} 53. Rb7 {[%clk 0:00:59]}  Rc3 {[%clk 0:00:55]} 54. Kxf6 {[%clk 0:00:55]}  Rxf3+ {[%clk 0:00:54]} 55. Kxe5 {[%clk 0:00:56]}  Ra3 {[%clk 0:00:51]} 56. Kf5 {[%clk 0:00:49]}  Rf3+ {[%clk 0:00:50]} 57. Ke4 {[%clk 0:00:48]}  Ra3 {[%clk 0:00:50]} 58. Rb8 {[%clk 0:00:45]}  a5 {[%clk 0:00:48]} 59. Kf4 {[%clk 0:00:38]}  a4 {[%clk 0:00:48]} 60. Rb6+ {[%clk 0:00:37]}  Kg7 {[%clk 0:00:47]} 61. Kg5 {[%clk 0:00:37]}  Ra1 {[%clk 0:00:46]} 62. Rb7+ {[%clk 0:00:37]}  Kf8 {[%clk 0:00:46]} 63. Ra7 {[%clk 0:00:38]}  a3 {[%clk 0:00:45]} 64. Kg6 {[%clk 0:00:39]}  a2 {[%clk 0:00:42]} 65. g5 {[%clk 0:00:39]}  Ke8 {[%clk 0:00:42]} 66. Kg7 {[%clk 0:00:37]}  Rg1 {[%clk 0:00:39]} 67. Rxa2 {[%clk 0:00:33]}  Rxg5+ {[%clk 0:00:35]} 68. Kf6 {[%clk 0:00:34]}  Rb5 {[%clk 0:00:34]} 69. Ra6 {[%clk 0:00:31]}  Kd7 {[%clk 0:00:32]} 70. Ra7+ {[%clk 0:00:29]}  Kc6 {[%clk 0:00:31]} 1/2-1/2


[Site "https://www.chess.com"]

[Event "Titled Tuesday Blitz December 27 Late 2022"]
[White "Floresvillar Gonzalez, Luis Migu"]
[Black "Finkelstein, Alan"]
[WhiteFideId "5100542"]
[BlackFideId "30950961"]
[WhiteElo "2043"]
[BlackElo "2152"]
[Result "0-1"]
[Round "10"]
[TimeControl "180+2"]
[Date "2022.12.27"]
[WhiteClock "0:00:17"]
[BlackClock "0:00:08"]

1. e4 {[%clk 0:03:00]}  c5 {[%clk 0:02:59]} 2. Nf3 {[%clk 0:03:00]}  e6 {[%clk 0:02:58]} 3. g3 {[%clk 0:02:58]}  Nc6 {[%clk 0:02:56]} 4. Bg2 {[%clk 0:02:58]}  Nf6 {[%clk 0:02:57]} 5. Qe2 {[%clk 0:02:57]}  d6 {[%clk 0:02:57]} 6. c3 {[%clk 0:02:57]}  Be7 {[%clk 0:02:54]} 7. O-O {[%clk 0:02:56]}  O-O {[%clk 0:02:53]} 8. h4 {[%clk 0:02:56]}  e5 {[%clk 0:02:46]} 9. d3 {[%clk 0:02:52]}  Bg4 {[%clk 0:02:45]} 10. Bg5 {[%clk 0:02:49]}  h6 {[%clk 0:02:44]} 11. Be3 {[%clk 0:02:47]}  Qd7 {[%clk 0:02:41]} 12. Bc1 {[%clk 0:02:41]}  Rfe8 {[%clk 0:02:15]} 13. Nbd2 {[%clk 0:02:41]}  d5 {[%clk 0:02:11]} 14. Re1 {[%clk 0:02:34]}  Bf8 {[%clk 0:02:00]} 15. Qf1 {[%clk 0:02:24]}  Rad8 {[%clk 0:01:58]} 16. Nh2 {[%clk 0:02:12]}  Be6 {[%clk 0:01:56]} 17. Ndf3 {[%clk 0:02:12]}  Qc7 {[%clk 0:01:36]} 18. b3 {[%clk 0:02:09]}  b5 {[%clk 0:01:32]} 19. Bb2 {[%clk 0:02:08]}  c4 {[%clk 0:01:27]} 20. exd5 {[%clk 0:02:05]}  Nxd5 {[%clk 0:01:23]} 21. dxc4 {[%clk 0:02:03]}  bxc4 {[%clk 0:01:21]} 22. b4 {[%clk 0:01:44]}  f6 {[%clk 0:01:03]} 23. b5 {[%clk 0:01:33]}  Na5 {[%clk 0:00:57]} 24. Red1 {[%clk 0:01:29]}  Qb6 {[%clk 0:00:49]} 25. a4 {[%clk 0:01:27]}  Nb3 {[%clk 0:00:45]} 26. Ra2 {[%clk 0:01:25]}  Bc5 {[%clk 0:00:43]} 27. Ba3 {[%clk 0:01:17]}  Nxc3 {[%clk 0:00:39]} 28. Bxc5 {[%clk 0:01:16]}  Rxd1 {[%clk 0:00:27]} 29. Qxd1 {[%clk 0:01:09]}  Qxc5 {[%clk 0:00:25]} 30. Qc2 {[%clk 0:01:03]}  Nxa2 {[%clk 0:00:23]} 31. Qxa2 {[%clk 0:01:02]}  c3 {[%clk 0:00:23]} 32. Ne1 {[%clk 0:00:56]}  Nd4 {[%clk 0:00:19]} 33. Qb1 {[%clk 0:00:45]}  c2 {[%clk 0:00:18]} 34. Nxc2 {[%clk 0:00:45]}  Qxc2 {[%clk 0:00:18]} 35. Qb4 {[%clk 0:00:44]}  Qb3 {[%clk 0:00:14]} 36. Qc5 {[%clk 0:00:42]}  Qxa4 {[%clk 0:00:13]} 37. Bd5 {[%clk 0:00:40]}  Bxd5 {[%clk 0:00:12]} 38. Qxd5+ {[%clk 0:00:40]}  Kh8 {[%clk 0:00:12]} 39. Qd7 {[%clk 0:00:39]}  Qxb5 {[%clk 0:00:11]} 40. Qxa7 {[%clk 0:00:38]}  Qb1+ {[%clk 0:00:08]} 41. Kg2 {[%clk 0:00:36]}  Qe4+ {[%clk 0:00:08]} 42. Kg1 {[%clk 0:00:33]}  Rc8 {[%clk 0:00:08]} 43. Qa1 {[%clk 0:00:27]}  Rc1+ {[%clk 0:00:09]} 44. Qxc1 {[%clk 0:00:24]}  Ne2+ {[%clk 0:00:09]} 45. Kf1 {[%clk 0:00:23]}  Nxc1 {[%clk 0:00:10]} 46. f3 {[%clk 0:00:22]}  Qe3 {[%clk 0:00:09]} 47. Kg2 {[%clk 0:00:19]}  Nd3 {[%clk 0:00:09]} 48. Ng4 {[%clk 0:00:18]}  Qe2+ {[%clk 0:00:09]} 49. Kh3 {[%clk 0:00:18]}  Qxf3 {[%clk 0:00:09]} 50. Nh2 {[%clk 0:00:17]}  Nf2# {[%clk 0:00:08]} 0-1


[Site "https://www.chess.com"]

[Event "Titled Tuesday Blitz December 27 Late 2022"]
[White "Ibadov, Dashgyn"]
[Black "Ai, Evan"]
[WhiteFideId "24107514"]
[BlackFideId "2094770"]
[WhiteElo "2391"]
[BlackElo "2055"]
[Result "1/2-1/2"]
[Round "10"]
[TimeControl "180+2"]
[Date "2022.12.27"]
[WhiteClock "0:00:05"]
[BlackClock "0:01:10"]

1. d4 {[%clk 0:03:00]}  Nf6 {[%clk 0:02:59]} 2. c4 {[%clk 0:03:01]}  e6 {[%clk 0:02:59]} 3. Nf3 {[%clk 0:03:01]}  b6 {[%clk 0:02:58]} 4. Nc3 {[%clk 0:03:01]}  Bb7 {[%clk 0:02:58]} 5. g3 {[%clk 0:03:01]}  Be7 {[%clk 0:02:53]} 6. Bg2 {[%clk 0:03:01]}  Ne4 {[%clk 0:02:52]} 7. O-O {[%clk 0:03:01]}  Nxc3 {[%clk 0:02:48]} 8. bxc3 {[%clk 0:03:01]}  d6 {[%clk 0:02:47]} 9. Re1 {[%clk 0:03:02]}  Nd7 {[%clk 0:02:46]} 10. e4 {[%clk 0:03:02]}  e5 {[%clk 0:02:44]} 11. a4 {[%clk 0:02:51]}  a5 {[%clk 0:02:40]} 12. Bb2 {[%clk 0:02:44]}  O-O {[%clk 0:02:40]} 13. Nd2 {[%clk 0:02:44]}  c5 {[%clk 0:02:28]} 14. f4 {[%clk 0:02:36]}  Bf6 {[%clk 0:02:22]} 15. Nf3 {[%clk 0:02:33]}  cxd4 {[%clk 0:02:18]} 16. cxd4 {[%clk 0:02:33]}  Qe7 {[%clk 0:02:17]} 17. Qb3 {[%clk 0:02:11]}  Rfc8 {[%clk 0:02:05]} 18. fxe5 {[%clk 0:01:52]}  dxe5 {[%clk 0:02:06]} 19. dxe5 {[%clk 0:01:49]}  Nxe5 {[%clk 0:02:05]} 20. Nxe5 {[%clk 0:01:44]}  Bxe5 {[%clk 0:02:04]} 21. Bxe5 {[%clk 0:01:41]}  Qxe5 {[%clk 0:02:05]} 22. Qxb6 {[%clk 0:01:42]}  Ba6 {[%clk 0:02:02]} 23. Rad1 {[%clk 0:01:01]}  Bxc4 {[%clk 0:01:56]} 24. Qd4 {[%clk 0:00:50]}  Qxd4+ {[%clk 0:01:52]} 25. Rxd4 {[%clk 0:00:51]}  g6 {[%clk 0:01:45]} 26. e5 {[%clk 0:00:48]}  Rab8 {[%clk 0:01:41]} 27. Rc1 {[%clk 0:00:46]}  Be6 {[%clk 0:01:39]} 28. Rxc8+ {[%clk 0:00:39]}  Rxc8 {[%clk 0:01:40]} 29. Bf1 {[%clk 0:00:35]}  Rc5 {[%clk 0:01:39]} 30. Bb5 {[%clk 0:00:35]}  Rxe5 {[%clk 0:01:37]} 31. Rd8+ {[%clk 0:00:36]}  Kg7 {[%clk 0:01:37]} 32. Ra8 {[%clk 0:00:37]}  Re1+ {[%clk 0:01:34]} 33. Kf2 {[%clk 0:00:36]}  Rh1 {[%clk 0:01:30]} 34. h4 {[%clk 0:00:35]}  Rh2+ {[%clk 0:01:30]} 35. Kg1 {[%clk 0:00:30]}  Rg2+ {[%clk 0:01:30]} 36. Kxg2 {[%clk 0:00:23]}  Bd5+ {[%clk 0:01:30]} 37. Kf2 {[%clk 0:00:24]}  Bxa8 {[%clk 0:01:30]} 38. Ke3 {[%clk 0:00:25]}  f5 {[%clk 0:01:27]} 39. Kd4 {[%clk 0:00:24]}  h6 {[%clk 0:01:26]} 40. Kc5 {[%clk 0:00:24]}  g5 {[%clk 0:01:27]} 41. hxg5 {[%clk 0:00:25]}  hxg5 {[%clk 0:01:27]} 42. Kb6 {[%clk 0:00:25]}  f4 {[%clk 0:01:28]} 43. gxf4 {[%clk 0:00:26]}  gxf4 {[%clk 0:01:29]} 44. Kxa5 {[%clk 0:00:25]}  Bg2 {[%clk 0:01:28]} 45. Kb6 {[%clk 0:00:23]}  Kf6 {[%clk 0:01:26]} 46. a5 {[%clk 0:00:23]}  Ke7 {[%clk 0:01:22]} 47. a6 {[%clk 0:00:18]}  Kd6 {[%clk 0:01:21]} 48. a7 {[%clk 0:00:18]}  Ba8 {[%clk 0:01:20]} 49. Ba6 {[%clk 0:00:10]}  f3 {[%clk 0:01:20]} 50. Bf1 {[%clk 0:00:05]}  f2 {[%clk 0:01:18]} 51. Be2 {[%clk 0:00:05]}  Bg2 {[%clk 0:01:15]} 52. Bd3 {[%clk 0:00:04]}  Ba8 {[%clk 0:01:14]} 53. Be2 {[%clk 0:00:04]}  Bg2 {[%clk 0:01:13]} 54. Bf1 {[%clk 0:00:04]}  Ba8 {[%clk 0:01:10]} 55. Be2 {[%clk 0:00:05]} 1/2-1/2


[Site "https://www.chess.com"]